Cogmind - Beta 16 @@@ ROGUE MODE // 2025.12.07 @ 01:53:06 Player: souux Result: Destroyed by HD-HBL(j) with Overtuned Pulse Rifle Performance ------------- Evolutions (1) 500 Regions Visited (6) 1200 Robots Destroyed (102) 510 Value Destroyed (2496) 2496 Prototype IDs (18) 360 Alien Tech Used (0) 0 Bonus (1138) 1138 TOTAL SCORE: 6204 Bonus ------- High Alert Combat Kills 246 Follower Combat Kills 116 Registered with UFD 300 Met Optimus in HQ 500 Friendly Fire -24 Cogmind --------- Core Integrity 0/400 Matter 280/300 Energy 253/290 System Corruption 2% Temperature Cool (12) Movement Treading (180) Ox1 Location -9/Scraptown Parts ------- > --- POWER (1) -------- Improved Deuterium Engine > --- PROPULSION (2) --- Light Treads Overtuned Treads > --- UTILITY (4) ------ Scrap Suit High-capacity Storage Unit Light Regenerative Plating > --- WEAPON (2) ------- Overtuned Pulse Rifle Overtuned Pulse Rifle > --- INVENTORY (20) --- MA-1KR's Cyclogen Graviton Reactor Light Treads Light Treads Ballwheel Improved Cooling System Machine Analyzer Seismic Detector Spread Laser Overtuned Pulse Rifle Overtuned Pulse Rifle Advanced EMP Blaster Scythe PL-3XN's Ring of Power Peak State ------------ > --- POWER ------------ Graviton Reactor > --- PROPULSION ------- Compact Wheel Armored Wheel > --- UTILITY ---------- High-capacity Storage Unit Targeting Computer Improved Phase Shifter Light Regenerative Plating > --- WEAPON ----------- Spread Laser Spread Laser > --- INVENTORY -------- Improved Deuterium Engine Light Treads Light Treads Light Treads Light Treads Light Treads Light Treads Scrap Suit High-capacity Matter Pod Structural Scanner Machine Analyzer Seismic Detector Improved Hacking Suite Mapping Drone Bay Spread Laser Advanced EMP Blaster Grenade Launcher Plasma Cutter Scythe [Rating: 35] Favorites ----------- Power Ion Engine Engine Ion Engine Reactor Graviton Reactor Propulsion Compact Wheel Treads Light Treads Wheel Compact Wheel Utility Seismic Detector Device Seismic Detector Storage Large Storage Unit Processor Targeting Computer Protection Light Regenerative Plating Weapon Spread Laser Energy Gun Spread Laser Ballistic Gun Assault Rifle Launcher Grenade Launcher Slashing Weapon Scythe Build | -11 -10 -10 -9 -9 -9 -9 ------- Run | Yrd Mat Min Mat Sto Rec Scr Slots Evolved 2 | . . . 2 . . . Power . | . . . . . . . Propulsion . | . . . . . . . Utility 2 | . . . 2 . . . Weapon . | . . . . . . . Parts Attached 85 | 9 10 1 23 24 . 18 Power 9 | 1 . . 3 1 . 4 Engine 7 | 1 . . 3 1 . 2 Core . | . . . . . . . Reactor 2 | . . . . . . 2 Propulsion 24 | 4 3 . 4 8 . 5 Treads 12 | . 2 . 1 6 . 3 Leg . | . . . . . . . Wheel 12 | 4 1 . 3 2 . 2 Hover . | . . . . . . . Flight . | . . . . . . . Utility 25 | 2 2 . 5 10 . 6 Device 14 | 1 1 . 4 2 . 6 Storage 3 | 1 1 . . 1 . . Processor 1 | . . . . 1 . . Hackware . | . . . . . . . Protection 7 | . . . 1 6 . . Artifact . | . . . . . . . Weapon 27 | 2 5 1 11 5 . 3 Energy Gun 20 | 1 4 . 8 4 . 3 Energy Cannon . | . . . . . . . Ballistic Gun 2 | 1 . . . 1 . . Ballistic Cannon . | . . . . . . . Launcher 4 | . 1 1 2 . . . Special Weapon . | . . . . . . . Impact Weapon . | . . . . . . . Slashing Weapon 1 | . . . 1 . . . Piercing Weapon . | . . . . . . . Special Melee Weapon . | . . . . . . . Unidentified Prototypes 7 | . . . 2 2 . 3 Parts Lost 13 | . 2 2 3 3 . 3 Power 1 | . . . 1 . . . Propulsion 3 | . . 1 . . . 2 Utility 4 | . . . 1 3 . . Weapon 5 | . 2 1 1 . . 1 Highest Loss Streak 3 | . 1 2 1 2 . 3 To Critical Strikes . | . . . . . . . Average Backups 15 | 5 9 10 14 16 20 19 Power 1 | . 1 1 1 1 1 1 Propulsion 7 | 3 6 6 6 7 9 7 Utility 2 | . . 2 1 2 4 5 Weapon 4 | . 2 1 5 4 5 4 Tool/Special . | . . . . . . . Unused Backups 20 | . 1 . 6 1 . 12 Power 3 | . . . 1 1 . 1 Propulsion 5 | . . . 2 . . 3 Utility 5 | . . . . . . 5 Weapon 6 | . 1 . 3 . . 2 Tool/Special 1 | . . . . . . 1 Average Slot Usage (%) 99 | . 99 98 98 99 100 99 Engine 11 | . 14 14 10 11 11 10 Treads 3 | . 2 7 5 7 . . Wheel 20 | . 25 20 16 14 22 21 Device 17 | . 14 14 31 18 11 10 Storage 11 | . 14 14 11 11 11 11 Processor 5 | . . . . 5 11 10 Protection 5 | . . . . 8 11 11 Energy Gun 22 | . 26 17 20 19 22 21 Peak Build Rating 35 | 7 8 8 17 21 21 35 Average Rating 17 | 5 7 7 15 17 21 26 On Entrance 11 | . 7 8 8 17 21 21 Avg Prop Armor Cover (%) 5 | . 5 . . . . 8 Naked Turns . | . . . . . . . Heaviest Build 67 | 15 31 31 34 59 59 67 Greatest Support 40 | 32 40 26 40 40 26 38 Greatest Overweight (x) 3 | . 1 1 1 2 2 3 Average Overweight (x) 1 | . . 1 . 1 2 2 Largest Inventory Capacity 20 | 8 15 15 15 20 20 20 Average Capacity 16 | 7 12 15 15 16 20 20 Most Carried 20 | 8 12 12 15 20 20 20 Average Carried 15 | 5 9 10 14 16 19 19 Final Capacity 20 | 8 15 15 15 20 20 20 Final Carried 20 | 8 12 10 15 20 20 17 Scrap Suit Usage (%) 1 | . . . . . . 3 Parts Cannibalized 1 | . . . . . . 1 Class Distribution -------------------- 95% | Mutant 4% | Scavenger-Mutant Dominant Class ---------------- Mutant | -10/Materials Mutant | -10/Mines Mutant | -9/Materials Mutant | -9/Storage Mutant | -9/Recycling Mutant | -9/Scraptown Resources | -11 -10 -10 -9 -9 -9 -9 ----------- Run | Yrd Mat Min Mat Sto Rec Scr Matter Collected 3175 | 374 466 74 529 1279 . 453 Remotely . | . . . . . . . Salvage Created 3229 | 178 547 164 520 1764 . 56 Parts 201 | 14 46 9 32 97 . 3 Haulers Intercepted 5 | . 1 . 2 2 . . Recyclers Shooed 2 | . . . 1 1 . . Parts Field Recycled . | . . . . . . . Retrieved Matter . | . . . . . . . Parts Self-Destructed 2 | . . . . . . 2 Prevented . | . . . . . . . Parts Restored . | . . . . . . . Kills | -11 -10 -10 -9 -9 -9 -9 ------- Run | Yrd Mat Min Mat Sto Rec Scr Combat Hostiles Destroyed 67 | . 19 4 9 34 . 1 Guns 37 | . 13 1 7 15 . 1 AOE 27 | . 6 2 . 19 . . Classes Destroyed 14 | 2 6 . 3 2 . 1 Worker 3 | . 1 . 1 1 . . Builder 4 | . . . 2 2 . . Tunneler 5 | 5 . . . . . . Hauler 5 | . 1 . 2 2 . . Recycler 4 | 1 . . . 3 . . Mechanic 2 | . . . 1 1 . . Operator 4 | . 1 . 1 2 . . Watcher 8 | . 3 . 3 2 . . Swarmer 21 | . 12 . 3 6 . . Grunt 31 | . 7 4 4 16 . . Brawler 2 | . . . . 2 . . Duelist 1 | . . . . 1 . . Sentry 11 | . . . 2 9 . . Explorer 1 | . . . . . . 1 Best Kill Streak 10 | 4 4 4 3 10 . 1 Combat Bots Only 7 | . 3 4 3 7 . 1 Max Kills in Single Turn 5 | 1 2 1 2 5 . 1 Gunslinging . | . . . . . . . Exploded 3 | . 2 1 . 3 . . Melee . | . . . . . . . Uniques/NPCs Destroyed . | . . . . . . . Combat | -11 -10 -10 -9 -9 -9 -9 -------- Run | Yrd Mat Min Mat Sto Rec Scr Hostile Shots Fired 327 | . 61 19 44 104 . 99 Missed 86 | . 15 5 9 31 . 26 Hits 241 | . 46 14 35 73 . 73 Melee 11 | . . . . 2 . 9 Projectile 230 | . 46 14 35 71 . 64 Critical Strikes 9 | . 1 1 1 1 . 5 Damage Taken 3342 | . 617 172 410 1181 . 962 Core 540 | . 120 . 81 184 . 155 Absorbed by Shields . | . . . . . . . Regen/Repaired (Parts) 378 | . 126 . 210 . . 42 Core Remaining (%) 76 | 100 . 52 . . . . Volleys Fired 215 | 28 51 9 47 72 . 8 Largest 2 | 2 2 2 2 2 . 2 Hottest 130 | 60 80 80 130 130 . 130 Shots Fired 369 | 33 93 13 95 119 . 16 Gun 342 | 33 86 11 95 101 . 16 Cannon . | . . . . . . . Launcher 27 | . 7 2 . 18 . . Special . | . . . . . . . Kinetic 28 | 28 . . . . . . Thermal 212 | . . . 95 101 . 16 Explosive 11 | . 7 2 . 2 . . Electromagnetic 118 | 5 86 11 . 16 . . Robot Hit Streak 22 | 12 7 12 11 17 . 22 Robot Miss Streak 5 | 2 5 . 3 5 . 2 Penetration Max . | . . . . . . . Secondary Targets . | . . . . . . . Shots Hit Robots 239 | 26 46 11 65 75 . 16 Core Hits 186 | 7 31 9 26 88 . 25 Critical Kills . | . . . . . . . Critical Parts Destroyed . | . . . . . . . Critical Strikes 11 | . 1 . 5 5 . . Burn 10 | . . . 5 5 . . Corrupt 1 | . 1 . . . . . Melee Attacks 5 | . . . 1 2 . 2 Impact . | . . . . . . . Slashing 5 | . . . 1 2 . 2 Piercing . | . . . . . . . Sneak Attacks . | . . . . . . . Combat Hostiles . | . . . . . . . Follow-up Attacks . | . . . . . . . Damage Inflicted 6220 | 326 1127 229 1098 3180 . 260 Guns 3778 | 326 646 146 1098 1302 . 260 Cannons . | . . . . . . . Explosions 2442 | . 481 83 . 1878 . . Melee . | . . . . . . . Ramming . | . . . . . . . Kinetic 289 | 289 . . . . . . Thermal 3246 | . 275 . 1098 1613 . 260 Explosive 566 | . 206 83 . 277 . . Electromagnetic 2119 | 37 646 146 . 1290 . . Impact . | . . . . . . . Slashing . | . . . . . . . Piercing . | . . . . . . . Highest Corruption 3 | . . . 3 3 3 2 Average Corruption 2 | . . . 2 3 3 1 Corruption Purged . | . . . . . . . Corruption Blocked . | . . . . . . . Effects 62 | . . . 25 25 11 1 Message Errors 18 | . . . 7 7 3 1 Matter Fused 18 | . . . 8 7 3 . Heat Flow Errors 7 | . . . 1 4 2 . Energy Discharges 8 | . . . 4 2 2 . Parts Fused 1 | . . . 1 . . . Data Loss (minor) 5 | . . . 1 3 1 . Data Loss (major) 2 | . . . 1 1 . . Misfires 2 | . . . 1 1 . . Alerts 1 | . . . 1 . . . Overload Shots . | . . . . . . . Overflow Damage 90 | . 33 . . 57 . . Projectiles . | . . . . . . . Explosions 90 | . 33 . . 57 . . Melee . | . . . . . . . Knockbacks . | . . . . . . . Impact . | . . . . . . . Kinetic . | . . . . . . . Secondary . | . . . . . . . Self-Inflicted Damage 437 | . 207 . . 230 . . Shots 15 | . 4 . . 11 . . Rammed . | . . . . . . . Targets Rammed . | . . . . . . . Kicked . | . . . . . . . Crushed . | . . . . . . . Highest Temperature 219 | . 120 136 217 219 216 95 Average Temperature 58 | . 37 69 50 72 111 50 Received Heat Transfer 1297 | . 102 114 159 426 . 496 Siege Activations . | . . . . . . . Martial Activations . | . . . . . . . Shielding Activations . | . . . . . . . Robots Disrupted . | . . . . . . . Combat Hostiles . | . . . . . . . Robots Corrupted 1 | . . 1 . . . . Combat Hostiles 1 | . . 1 . . . . Parts Fried 9 | 1 4 2 . 2 . . Impact Corruptions . | . . . . . . . Robots Melted 2 | . . . 2 . . . Combat Hostiles 2 | . . . 2 . . . Parts Melted 10 | . . . 7 3 . . Heat Transferred 6852 | . 200 . 2960 3300 . 392 Parts Sabotaged . | . . . . . . . Parts Stolen . | . . . . . . . Parts Stripped . | . . . . . . . Power Chain Reactions 11 | . 3 . . 8 . . Alert | -11 -10 -10 -9 -9 -9 -9 ------- Run | Yrd Mat Min Mat Sto Rec Scr Maximum Alert Level 3 | . 1 1 . 3 1 . Low Security (%) 64 | 100 64 58 100 22 52 . Level 1 17 | . 35 41 . 6 47 . Level 2 7 | . . . . 29 . . Level 3 10 | . . . . 41 . . Level 4 . | . . . . . . . Level 5 . | . . . . . . . High Security . | . . . . . . . Max Security . | . . . . . . . Peak Influence 777 | 10 385 219 85 777 291 . Initial 291 | . . 138 77 . 291 . Average 196 | 1 129 187 18 516 183 . Influence Increases 2596 | 30 730 111 483 1223 19 . Destroy 0b10 Robot/C 1400 | . 380 80 260 680 . . Destroy 0b10 Robot/NC 175 | 30 30 . 50 65 . . Destroy Leader 376 | . 88 20 90 178 . . Allied During Kill 11 | . . . 11 . . . Successful Hack 119 | . 47 . 26 27 19 . Disable Machine 135 | . 105 . . 30 . . Anti-Garrison Action 150 | . . . . 150 . . Destroy Structure 140 | . 80 11 1 48 . . Partial Spotted 15 | . . . . 15 . . Lose Combat Pursuer 75 | . . . 45 30 . . Influence Decreases 2596 | 30 374 268 682 476 694 72 Entered New Map 868 | . . 218 122 . 456 72 Time Decay 1464 | 30 286 30 434 446 238 . Lost Part 88 | . 10 20 28 30 . . Lost Ally 37 | . . . 37 . . . Purge Threat 139 | . 78 . 61 . . . Squads Dispatched 15 | . 4 . 3 8 . . Investigation 2 | . 1 . 1 . . . Extermination . | . . . . . . . Reinforcement 8 | . 3 . 2 3 . . Assault 3 | . . . . 3 . . Garrison 2 | . . . . 2 . . Intercept . | . . . . . . . Searches Triggered . | . . . . . . . Construction Impeded 1 | . . . . 1 . . Haulers Reinforced . | . . . . . . . Active Scanning Responses . | . . . . . . . Cargo Convoy Interrupts . | . . . . . . . Stealth | -11 -10 -10 -9 -9 -9 -9 --------- Run | Yrd Mat Min Mat Sto Rec Scr Distress Signals 10 | . 2 . 1 7 . . Communications Jammed . | . . . . . . . Distress Signals . | . . . . . . . Times Spotted 126 | . 24 3 22 48 . 29 Peak Tracking Total 11 | . 4 2 4 8 . 11 Tactical Retreats 7 | . . . 3 2 . 2 Traps | -11 -10 -10 -9 -9 -9 -9 ------- Run | Yrd Mat Min Mat Sto Rec Scr Traps Triggered 3 | . 1 . 2 . . . Indirectly . | . . . . . . . Trap Hack Attempts . | . . . . . . . Triggered . | . . . . . . . Disarmed . | . . . . . . . Reprogrammed . | . . . . . . . Reused . | . . . . . . . Traps Extracted . | . . . . . . . Installed . | . . . . . . . Triggered . | . . . . . . . Machines | -11 -10 -10 -9 -9 -9 -9 ---------- Run | Yrd Mat Min Mat Sto Rec Scr Machines Disabled 12 | . 7 . . 3 . 2 Max in Single Turn 2 | . 1 . . 2 . 1 Garrison Access 1 | . . . . 1 . . Machines Repaired . | . . . . . . . Machines Dismantled . | . . . . . . . Machines Sabotaged . | . . . . . . . Overloaded Fab Kills . | . . . . . . . Hacking | -11 -10 -10 -9 -9 -9 -9 --------- Run | Yrd Mat Min Mat Sto Rec Scr Machines Accessed 35 | . 6 . 9 7 4 9 Terminals 23 | . 5 . 7 7 4 . Fabricators . | . . . . . . . Repair Stations 2 | . 1 . 1 . . . Recycling Units . | . . . . . . . Scanalyzers 1 | . . . 1 . . . Garrison Access . | . . . . . . . Total Hacks 129 | . 20 . 36 17 11 45 Successful 97 | . 11 . 25 12 4 45 Failed 32 | . 9 . 11 5 7 . Catastrophic 3 | . 1 . 1 . 1 . Database Lockouts . | . . . . . . . Manual 62 | . 16 . 20 16 10 . Terminals 71 | . 18 . 25 17 11 . Fabricators . | . . . . . . . Repair Stations 8 | . 2 . 6 . . . Recycling Units . | . . . . . . . Scanalyzers 5 | . . . 5 . . . Garrison Access . | . . . . . . . Terminal Hacks 53 | . 1 . 3 4 . 45 Record 39 | . . . . . . 39 Robot Analysis 5 | . . . . . . 5 Prototype ID Bank 3 | . . . 1 2 . . Open Door 2 | . . . . 2 . . Unreport Threat 2 | . 1 . 1 . . . Locate Traps 1 | . . . 1 . . . Proto ID Catalog 1 | . . . . . . 1 Fabricator Hacks . | . . . . . . . Repair Station Hacks 8 | . 2 . 6 . . . Scan Component 4 | . 1 . 3 . . . Repair 4 | . 1 . 3 . . . Recycling Unit Hacks . | . . . . . . . Scanalyzer 4 | . . . 4 . . . Retrieve Study 4 | . . . 4 . . . Garrison Access Hacks . | . . . . . . . Unauthorized Hacks 32 | . 8 . 12 8 4 . Terminals 32 | . 8 . 12 8 4 . Botnet 16 | . 3 . 5 4 4 . Skim 16 | . 5 . 7 4 . . Fabricators . | . . . . . . . Repair Stations . | . . . . . . . Recycling Units . | . . . . . . . Scanalyzers . | . . . . . . . Garrison Access . | . . . . . . . Data Cores Recovered . | . . . . . . . Used . | . . . . . . . Hacking Detections 25 | . 5 . 9 7 4 . Full Trace Events 3 | . . . 1 1 1 . Feedback Events . | . . . . . . . Feedback Blocked . | . . . . . . . Robot Schematics Acquired . | . . . . . . . Robots Built . | . . . . . . . Authchips . | . . . . . . . Time . | . . . . . . . Total Robot Build Rating . | . . . . . . . Part Schematics Acquired . | . . . . . . . Parts Built . | . . . . . . . Authchips . | . . . . . . . Time . | . . . . . . . Total Part Build Rating . | . . . . . . . Part Studies Acquired 4 | . . . 4 . . . Parts Repaired 4 | . 1 . 3 . . . Time 104 | . 26 . 78 . . . Parts Recycled . | . . . . . . . Recycled Matter . | . . . . . . . Retrieved Matter . | . . . . . . . Retrieved Components . | . . . . . . . Parts Scanalyzed . | . . . . . . . Part Schematics Acquired . | . . . . . . . Parts Damaged . | . . . . . . . Bothacking | -11 -10 -10 -9 -9 -9 -9 ------------ Run | Yrd Mat Min Mat Sto Rec Scr Used RIF Installer . | . . . . . . . Robots Hacked . | . . . . . . . Non-combat . | . . . . . . . Combat . | . . . . . . . Robot Hacks Applied . | . . . . . . . Relay Couplers Released 1 | . . . . 1 . . Machine Destruction 1 | . . . . 1 . . Fabnet Peak Effective % . | . . . . . . . Robots Rewired . | . . . . . . . Allies Hacked . | . . . . . . . Hacks Repelled . | . . . . . . . Allies | -11 -10 -10 -9 -9 -9 -9 -------- Run | Yrd Mat Min Mat Sto Rec Scr Total Allies 3 | . . 3 . . . . Largest Group 3 | . . 3 3 . . . Highest-Rated Group 40 | . . 40 40 . . . Highest-Rated Ally 16 | . . 16 16 . . . Total Orders . | . . . . . . . Ally Attacks 28 | . . . 28 . . . Total Damage 238 | . . . 238 . . . Kills 4 | . . . 4 . . . Allies Corrupted . | . . . . . . . Allies Melted 5 | . . . . . . 5 Intel | -11 -10 -10 -9 -9 -9 -9 ------- Run | Yrd Mat Min Mat Sto Rec Scr Active Infowar (turns) 4467 | 67 1504 79 1640 1177 . . Structural 2488 | . . . 1640 848 . . Seismic 3879 | 67 1504 79 1599 630 . . Robot Analysis Total 5 | . . . . . . 5 Derelict Logs Recovered . | . . . . . . . Drone Launches . | . . . . . . . Drone Recoveries . | . . . . . . . Exploration | -11 -10 -10 -9 -9 -9 -9 ------------- Run | Yrd Mat Min Mat Sto Rec Scr Turns Passed 7589 | 190 1504 79 1640 1368 509 2299 Spaces Moved 4536 | 114 657 40 818 622 446 1839 Core 3 | 3 . . . . . . Treads 38 | . 1 . 1 29 . 7 Legs . | . . . . . . . Wheels 4495 | 111 656 40 817 593 446 1832 Hover . | . . . . . . . Flight . | . . . . . . . Fastest Speed 50 | 50 90 105 95 95 110 95 Average Speed 109 | 93 104 105 96 106 110 119 Slowest Speed 200 | 100 160 105 160 200 110 180 Overloaded Moves . | . . . . . . . Propulsion Burnouts . | . . . . . . . Robots Hopped . | . . . . . . . Potential Cave-ins . | . . . . . . . Cave-ins Triggered . | . . . . . . . Exploration Rate (%) 61 | 5 98 11 58 80 84 92 Regions Visited 6 Branch Regions 4 Pre-discovered Areas 6 | . . . 4 . . 2 Known Exits Taken 3 | . 1 . 1 1 . . Unknown Exits Taken 3 | 1 . 1 . . 1 . Scrap Searched 5 | . . . . . . 5 Spaces Dug 46 | . 12 9 1 24 . . Terrain Destroyed 141 | . 80 17 1 43 . . Melee 3 | . . . 1 2 . . Projectile . | . . . . . . . AOE 138 | . 80 17 . 41 . . Terrain Rammed . | . . . . . . . Walls Destroyed . | . . . . . . . Machines Disabled . | . . . . . . . Actions | -11 -10 -10 -9 -9 -9 -9 --------- Run | Yrd Mat Min Mat Sto Rec Scr Total 6725 | 160 1365 62 1571 1163 466 1938 Wait 1579 | 3 599 9 611 320 17 20 Move 4530 | 113 656 39 817 621 445 1839 Hop . | . . . . . . . Pick Up 66 | 6 10 . 21 14 2 13 Fast Attach 30 | 8 1 . 6 6 . 9 Attach 13 | . 2 2 3 2 . 4 Detach 4 | 1 . . 2 . . 1 Swap 200 | 1 39 3 40 104 . 13 Drop 83 | . 7 . 23 22 2 29 Fire 215 | 28 51 9 47 72 . 8 Melee 5 | . . . 1 2 . 2 Ram . | . . . . . . . Kick . | . . . . . . . Crush . | . . . . . . . Escape Stasis . | . . . . . . . Rewire . | . . . . . . . Trap . | . . . . . . . Miscellaneous . | . . . . . . . Route ------- -11/Scrapyard -10/Materials (discovered 6 exits: *Mat x3 / *Min x2 / Sub) -10/Mines -9/Materials (discovered 6 exits: *Mat x3 / *Min / *Sto x2) -9/Storage (discovered 2 exits: *Mat / *Rec) -9/Recycling (discovered 2 exits: [*Fac] / *Scr) -9/Scraptown (discovered 2 exits: [*Fac x2]) History --------- Turn | Location | Event 19 | -11/Scrapyard | Discovered new exit (range 14) 191 | -11/Scrapyard | Entered Materials 305 | -10/Materials | Build established: Mutant 971 | -10/Materials | Discovered new exit (range 15) 1093 | -10/Materials | Discovered new exit (range 4) 1394 | -10/Materials | Discovered new exit (range 11) 1428 | -10/Materials | Repaired Lgt. Treads 1445 | -10/Materials | Learned 4 Subcaves zone layouts 1499 | -10/Materials | Identified exit to Mines 1499 | -10/Materials | Identified exit to Subcaves 1574 | -10/Materials | Learned Storage stockpile data 1598 | -10/Materials | Learned Storage stockpile data 1613 | -10/Materials | Learned location of 2 exits from Materials 1616 | -10/Materials | Learned 2 Storage zone layouts 1629 | -10/Materials | Learned 4 Subcaves zone layouts 1689 | -10/Materials | Learned 2 Mines zone layouts 1695 | -10/Materials | Entered Mines 1749 | -10/Mines | Discovered new exit (range 5) 1761 | -10/Mines | Assisted by bots powering up and referring to "LRC-V3" 1774 | -10/Mines | Entered Materials 1774 | -9/Materials | Accompanied by 3 allies 1774 | -9/Materials | Evolved 2 slots: Utility x2 1775 | -9/Materials | Identified exit to Storage 1775 | -9/Materials | Identified exit to Mines 2828 | -9/Materials | Learned location of Mines (-9) 2858 | -9/Materials | Discovered new exit (range 13) 2887 | -9/Materials | Identified exit to Materials 2971 | -9/Materials | Learned Storage trap positions 3000 | -9/Materials | Learned 2 Storage zone layouts 3020 | -9/Materials | Learned location of Zion (-7) 3029 | -9/Materials | Learned Storage emergency access door positions 3084 | -9/Materials | Repaired Lgt. Treads+ 3111 | -9/Materials | Repaired Lgt. Treads+ 3138 | -9/Materials | Repaired Lgt. Treads+ 3414 | -9/Materials | Entered Storage 3415 | -9/Storage | Identified exit to Recycling 3416 | -9/Storage | Loaded intel: 3 trap records 3556 | -9/Storage | Garrison activated, responded to threat 3825 | -9/Storage | Core integrity fell below 50% 3835 | -9/Storage | Destroyed 7 combat bots 4607 | -9/Storage | Found Prototype Protection 4607 | -9/Storage | Identified Lgt. Regenerative Plating 4614 | -9/Storage | First assault squad dispatched 4763 | -9/Storage | Used back door to open Recycling access 4782 | -9/Storage | Entered Recycling 5205 | -9/Recycling | Discovered new exit (range 7) 5266 | -9/Recycling | Scanned before Scraplab entrance 5281 | -9/Recycling | Entered Scraplab 5290 | -9/Recycling | Discovered new exit (range 2) 5291 | -9/Recycling | Entered Scraptown 5291 | -9/Scraptown | System corruption cleaned by C-Scrubber 5719 | -9/Scraptown | Discovered new exit (range 7) 5904 | -9/Scraptown | Heard Great Nut preacher, LISTEN AND RECITE! 5914 | -9/Scraptown | Visited Cyclists 5951 | -9/Scraptown | Visited Cave Peace 5992 | -9/Scraptown | Visited CPS Storage 6118 | -9/Scraptown | Visited Supply Room 6150 | -9/Scraptown | Visited Awakened 6178 | -9/Scraptown | Visited SPCMW 6204 | -9/Scraptown | Visited Symbiants 6241 | -9/Scraptown | Visited UFD Registry 6241 | -9/Scraptown | Registered with UFD as "Autoplate" 6317 | -9/Scraptown | Entered Cyclist Reading Room 6322 | -9/Scraptown | Learned location of Exiles (-9) 6436 | -9/Scraptown | Visited Cartography Club 6587 | -9/Scraptown | Visited Science Guys 6641 | -9/Scraptown | Visited Chapter 10 6732 | -9/Scraptown | Found Scrap Suit 6758 | -9/Scraptown | Discovered new exit (range 5) 6801 | -9/Scraptown | Visited LU-1G1's Boring Crew 6870 | -9/Scraptown | Visited Scrapoid Pod Storage 7100 | -9/Scraptown | Visited Observation Area 7151 | -9/Scraptown | Visited Analyses Database 7177 | -9/Scraptown | Visited Curators Association 7254 | -9/Scraptown | Met Optimus 7254 | -9/Scraptown | Accepted into 0bPrime 7329 | -9/Scraptown | Civil war broke out across Scraptown 7422 | -9/Scraptown | Found Prototype Reactor 7422 | -9/Scraptown | Identified MA-1KR's Cyclogen 7438 | -9/Scraptown | Found Prototype Wheel 7448 | -9/Scraptown | Found PL-3XN's Ring of Power 7533 | -9/Scraptown | Optimus destroyed in the chaos of civil war 7578 | -9/Scraptown | Core integrity fell below 20% 7590 | -9/Scraptown | Destroyed by HD-HBL(j) with Overtuned Pulse Rifle Last Messages --------------- to repair Ovr. Pulse Rifle. 07582_ EB-HGH(j) cannibalizes Ovr. Titanium Leg to repair Ovr. Titanium Leg. 07582_ Bolt penetrates Machine. 07582_ Acquired 10 matter. 07584_ EB-HGH(j) cannibalizes Ovr. Pulse Rifle to repair Ovr. Pulse Rifle. 07584_ CN-ALZ(g) suffers critical hit (Burn). 07584_ CN-ALZ(g) destroyed. 07584_ LG-KAL(E) suffers critical hit (Burn). 07585_ KK-N85(j) cannibalizes Corrupted Lgt. Deuterium Engine to repair Lgt. Deuterium Engine. 07585_ LG-KAL(E) destroyed. 07586_ KK-N85(j) cannibalizes Ovr. Titanium Leg to repair Ovr. Titanium Leg. 07588_ RECRCKW,H FI24HXEYS%=BI&OIR2 07589_ Bolt penetrates UB-ZAB(p). 07589_ Bolt penetrates Machine. 07590_ KK-N85(j) destroyed. Map ----- +----------------------------------------------------+ | ###???????????????????????"""?#"""##""|##"""#??## | | ??????????????????????????"" ##"" ##"" ##!!"#### | | ?????????????????????????#"" == | | ?????????????????????????# | | ?????????????????????????####################### | | ???????????????????????????????????????????????## | | ?????????????????????????#############??????????# | | ?????????###?????????????#"""""""""""############ | | ?????????# ####??????????#""" X """""#""""""""""# | | ###??????#[# !#??????????#"""" """# " ### | | """"#???# # ##??????????#""/" "#"" ## | | ||| #???# ###? ?[????#"""" """#"" ## | | """"#???# ####X# ?[????#"" """"#"""" ## | | || #???# ## #### ?%????# ""#"" " ## | | """"#???# # # %???# " "" ""#"""" ## | | | #???###### ##="[##??#&" "" ""#"" ## | | """"#???# [==!= #??#" #" ### | | ||| #???# *%%!%!#??# "# # | | #???#######;#!j=##??###### ########### ##### | | ## ####???????##;;#%%########## ########### ##### | | = #???????#"" "!= """""""" """ """" """"" | | #???????#" !!=! p% !% | | %! #???????#" !=* j = ! | | [ #???????#" =%%[ =* | | #???????# =[h= E | | #???##### !%=%!!@ | | !#???#"""" ![!j"* """""""""""""""""""""""" | | =%#???#"""" ==!% """"""""""""""""""""""""""" | | #???#"""" !%!=h "###### ################"" | | #???#"""" ! jj!"# ##????????#"" | | #???#""" j""# X"#????????#"" | | ! ###?#""" !""# "" "" ##????????#"" | | %! ""#"#""" j %""# "" "" X"#??????###"" | | == % """"#"""" [ ! =!"#[ " " ######### #"" | | ""#######"%!%* !"=%= " | | ###????#" !==*!["=!== " | | ######### *!%[%%=%" " ######### #"" | | =%* [! #!="" "" ""#??????###"" | | !! [ ="[# *%"" "" ##????????#"" | | =!= = !%* " # =!! X"#????????#"" | | =%!%! !%[ [ =" # % ##????????#"" | | ! =! !*[!%! =% ###### "###############"" | | =[ = / """"""" """ """""""""""""" | | % !% """ """ !""" """"""""" | | !! *= ! %! =%* | | ! /%=!% =%= ! | | %! ! * ==/% | | = #""""#" != | | #????#" *!! %! | | #????#"""" """"""""" """"""""""" """" | +----------------------------------------------------+ Best States ------------- Heat Dissipation 55 Energy Generation 29 Energy Capacity 340 Matter Stores 300 Matter Capacity 300 Sight Range 16 Terrain Scan Density 10 Armor Coverage 230 Evasion (%) 42 Targeting Accuracy 5 Recoil Reduction 2 Item Schematics ----------------- None Robot Schematics ------------------ None Fabricated ------------ Nothing Repaired ---------- Lgt. Treads | 10% | -10/Materials Lgt. Treads | 37% | -9/Materials Lgt. Treads | 47% | -9/Materials Lgt. Treads | 65% | -9/Materials Studied --------- Wheel | -9/Materials | Hacked Com. Wheel | -9/Materials | Hacked Lgt. Treads | -9/Materials | Hacked Particle Gun | -9/Materials | Hacked Alien Tech Used ----------------- None Achievements -------------- Bob, First Of His Name Challenges ------------ None Game ------ Seed MyomerAerolevWings Manual? 0 Play Time 01:40:25 Cumulative 107.2 hours Start 2025.12.07 @ 00:07:55 End 2025.12.07 @ 01:53:06 Sessions 1 Manual Loads 0 Difficulty Rogue Special Mode None Game No. 91 Rogue 91 Adventurer 0 Explorer 0 Win Type - Total 1 Types 1/0/0/0/0/0/0/0/0/0 Lore% 40 Gallery% 43 Achievement% 36 Wizard Run 0 Options --------- Layout 2 ASCII 0 Keyboard 0 Movement Mouse Keybinds 0 Fullscreen 2 Font 24/Terminus Map View 50x44 Zoom Use 0% Tactical HUD 1 Map Filters NONE Filters NONE Steam 1 RUN: 2b6b6492-6fc8-4df6-a3b8-1615a7cc7c97